Cogmind - Beta 17.1 @@@ ROGUE MODE // 2026.09.04 @ 20:46:59 Player: frazz Result: Destroyed by Autobeam Turret with Autobeam Performance ------------- Evolutions (0) 0 Regions Visited (2) 400 Robots Destroyed (18) 90 Value Destroyed (423) 423 Prototype IDs (2) 40 Alien Tech Used (0) 0 Bonus (0) 0 TOTAL SCORE: 953 Bonus ------- None Cogmind --------- Core Integrity 0/250 Matter 300/300 Energy 96/100 System Corruption 0% Temperature Cool (8) Movement Walking (120) Location -10/Subcaves Parts ------- > --- POWER (1) -------- Subdweller Power Source > --- PROPULSION (2) --- Aluminum Leg Aluminum Leg > --- UTILITY (2) ------ Small Storage Unit Backup Plating I > --- WEAPON (2) ------- Light Assault Rifle > --- INVENTORY (8) ---- Aluminum Leg Heat Sink Small Storage Unit Improved Terrain Scanner Peak State ------------ > --- POWER ------------ Light Ion Engine > --- PROPULSION ------- Aluminum Leg Aluminum Leg > --- UTILITY ---------- Small Storage Unit Improved Terrain Scanner > --- WEAPON ----------- EM Pulse Gun Assault Rifle > --- INVENTORY -------- Ion Engine Light Ion Engine Backup Power I Aluminum Leg Small Storage Unit Improved Terrain Scanner Backup Plating I Backup Plating I [Rating: 10] Favorites ----------- Power Light Ion Engine Engine Light Ion Engine Propulsion Aluminum Leg Leg Aluminum Leg Hover Unit Backup Propulsion I Utility Small Storage Unit Device Improved Terrain Scanner Storage Small Storage Unit Protection Backup Plating I Weapon Assault Rifle Energy Gun Small Laser Ballistic Gun Assault Rifle Build | -11 -10 -10 ------- Run | Yrd Mat Sub Slots Evolved . | . . . Power . | . . . Propulsion . | . . . Utility . | . . . Weapon . | . . . Parts Attached 21 | 7 9 5 Power 6 | 1 3 2 Engine 6 | 1 3 2 Core . | . . . Reactor . | . . . Propulsion 6 | 2 3 1 Treads . | . . . Leg 6 | 2 3 1 Wheel . | . . . Hover . | . . . Flight . | . . . Utility 4 | 2 1 1 Device 2 | 1 1 . Storage 1 | 1 . . Processor . | . . . Hackware . | . . . Protection 1 | . . 1 Artifact . | . . . Weapon 5 | 2 2 1 Energy Gun 3 | 1 2 . Energy Cannon . | . . . Ballistic Gun 2 | 1 . 1 Ballistic Cannon . | . . . Launcher . | . . . Special Weapon . | . . . Impact Weapon . | . . . Slashing Weapon . | . . . Piercing Weapon . | . . . Special Melee Weapon . | . . . Unidentified Prototypes . | . . . Parts Lost 7 | . 1 6 Power 2 | . . 2 Propulsion 1 | . . 1 Utility 1 | . . 1 Weapon 3 | . 1 2 Highest Loss Streak 3 | . 1 3 To Critical Strikes . | . . . Average Backups 6 | 2 7 5 Power 1 | 1 2 . Propulsion 1 | . 1 1 Utility 3 | . 3 3 Weapon . | . . . Tool/Special . | . . . Unused Backups 4 | . 2 2 Power 2 | . 2 . Propulsion . | . . . Utility 2 | . . 2 Weapon . | . . . Tool/Special . | . . . Average Slot Usage (%) 91 | . 95 87 Engine 11 | . 14 10 Leg 27 | . 27 27 Device 11 | . 13 9 Storage 14 | . 14 14 Protection 2 | . . 4 Energy Gun 9 | . 10 7 Ballistic Gun 12 | . 12 12 Peak Build Rating 10 | 9 10 10 Average Rating 8 | 5 9 8 On Entrance 6 | . 9 10 Avg Prop Armor Cover (%) . | . . . Naked Turns . | . . . Heaviest Build 15 | 15 15 14 Greatest Support 20 | 20 20 20 Greatest Overweight (x) 3 | 1 3 1 Average Overweight (x) . | . . . Largest Inventory Capacity 8 | 8 8 8 Average Capacity 7 | 7 7 8 Most Carried 8 | 5 8 8 Average Carried 6 | 2 7 5 Final Capacity 8 | 8 8 8 Final Carried 8 | 4 8 4 Class Distribution -------------------- 54% | Scavenger-Mutant 45% | Mutant Dominant Class ---------------- Mutant | -10/Materials Scavenger-Mutant | -10/Subcaves Resources | -11 -10 -10 ----------- Run | Yrd Mat Sub Matter Collected 582 | 282 265 35 Remotely . | . . . Salvage Created 524 | 65 459 . Parts 41 | 8 33 . Haulers Intercepted . | . . . Recyclers Shooed 1 | . 1 . Parts Field Recycled . | . . . Retrieved Matter . | . . . Parts Self-Destructed 9 | . . 9 Prevented . | . . . Parts Restored . | . . . Kills | -11 -10 -10 ------- Run | Yrd Mat Sub Combat Hostiles Destroyed 15 | . 15 . Guns 15 | . 15 . Classes Destroyed 3 | 1 2 . Tunneler 3 | 3 . . Swarmer 6 | . 6 . Grunt 9 | . 9 . Best Kill Streak 5 | 2 5 . Combat Bots Only 5 | . 5 . Max Kills in Single Turn 1 | 1 1 . Gunslinging . | . . . Exploded . | . . . Melee . | . . . Uniques/NPCs Destroyed . | . . . Combat | -11 -10 -10 -------- Run | Yrd Mat Sub Hostile Shots Fired 134 | . 62 72 Missed 62 | . 21 41 Hits 72 | . 41 31 Projectile 72 | . 41 31 Critical Strikes 2 | . . 2 Damage Taken 1066 | . 477 589 Core 257 | . 97 160 Absorbed by Shields . | . . . Core Remaining (%) 100 | 100 . . Volleys Fired 50 | 4 46 . Largest 2 | 2 2 . Hottest 70 | 70 70 . Shots Fired 73 | 8 65 . Gun 73 | 8 65 . Cannon . | . . . Launcher . | . . . Special . | . . . Kinetic 44 | 4 40 . Thermal 20 | 4 16 . Explosive . | . . . Electromagnetic 9 | . 9 . Robot Hit Streak 5 | 2 5 . Robot Miss Streak 5 | 2 5 . Penetration Max . | . . . Secondary Targets 1 | . 1 . Max Gunslinging Chain 1 | . 1 . Shots Hit Robots 40 | 3 37 . Core Hits 28 | 3 25 . Critical Kills . | . . . Critical Parts Destroyed . | . . . Critical Strikes . | . . . Melee Attacks . | . . . Impact . | . . . Slashing . | . . . Piercing . | . . . Sneak Attacks . | . . . Combat Hostiles . | . . . Follow-up Attacks . | . . . Damage Inflicted 572 | 37 535 . Guns 510 | 37 473 . Cannons . | . . . Explosions 62 | . 62 . Melee . | . . . Ramming . | . . . Kinetic 307 | 13 294 . Thermal 184 | 24 160 . Explosive . | . . . Electromagnetic 81 | . 81 . Impact . | . . . Slashing . | . . . Piercing . | . . . Highest Corruption . | . . . Average Corruption . | . . . Corruption Purged . | . . . Corruption Blocked . | . . . Overload Shots . | . . . Overflow Damage . | . . . Projectiles . | . . . Explosions . | . . . Melee . | . . . Knockbacks . | . . . Impact . | . . . Kinetic . | . . . Secondary . | . . . Self-Inflicted Damage 31 | . 31 . Shots 1 | . 1 . Rammed . | . . . Targets Rammed . | . . . Kicked . | . . . Crushed . | . . . Highest Temperature 261 | 27 105 261 Average Temperature 39 | 12 33 141 Received Heat Transfer 611 | . 201 410 Siege Activations . | . . . Martial Activations . | . . . Shielding Activations . | . . . Robots Disrupted . | . . . Combat Hostiles . | . . . Robots Corrupted . | . . . Combat Hostiles . | . . . Parts Fried . | . . . Impact Corruptions . | . . . Robots Melted . | . . . Combat Hostiles . | . . . Parts Melted . | . . . Heat Transferred 435 | 74 361 . Parts Sabotaged . | . . . Parts Stolen . | . . . Parts Stripped . | . . . Power Chain Reactions 1 | . 1 . Alert | -11 -10 -10 ------- Run | Yrd Mat Sub Maximum Alert Level . | . . . Low Security (%) 100 | 100 100 . Level 1 . | . . . Level 2 . | . . . Level 3 . | . . . Level 4 . | . . . Level 5 . | . . . High Security . | . . . Max Security . | . . . Peak Influence 150 | 10 150 . Initial . | . . . Average 62 | . 69 . Influence Increases 634 | 15 469 150 Destroy 0b10 Robot/C 300 | . 300 . Destroy 0b10 Robot/NC 15 | 15 . . Destroy Leader 60 | . 60 . Successful Hack 16 | . 16 . Disable Machine 15 | . 15 . Destroy Structure 3 | . 3 . Lose Combat Pursuer 225 | . 75 150 Influence Decreases 619 | 15 364 240 Entered New Map 51 | . . 51 Time Decay 550 | 15 356 179 Lost Part 18 | . 8 10 Squads Dispatched 2 | . 2 . Investigation 1 | . 1 . Extermination . | . . . Reinforcement 1 | . 1 . Assault . | . . . Garrison . | . . . Intercept . | . . . Searches Triggered . | . . . Construction Impeded . | . . . Haulers Reinforced . | . . . Active Scanning Responses . | . . . Cargo Convoy Interrupts . | . . . Stealth | -11 -10 -10 --------- Run | Yrd Mat Sub Distress Signals 2 | . 2 . Communications Jammed . | . . . Distress Signals . | . . . Times Spotted 31 | . 22 9 Peak Tracking Total 8 | . 6 8 Tactical Retreats 8 | . 3 5 Traps | -11 -10 -10 ------- Run | Yrd Mat Sub Traps Triggered 4 | . 1 3 Indirectly . | . . . Trap Hack Attempts . | . . . Triggered . | . . . Disarmed 4 | . 4 . Reprogrammed . | . . . Reused . | . . . Traps Extracted . | . . . Installed . | . . . Triggered . | . . . Machines | -11 -10 -10 ---------- Run | Yrd Mat Sub Machines Disabled 1 | . 1 . Max in Single Turn 1 | . 1 . Machines Repaired . | . . . Machines Dismantled . | . . . Machines Sabotaged . | . . . Overloaded Fab Kills . | . . . Hacking | -11 -10 -10 --------- Run | Yrd Mat Sub Machines Accessed 10 | . 10 . Terminals 7 | . 7 . Fabricators . | . . . Repair Stations 1 | . 1 . Recycling Units 2 | . 2 . Scanalyzers . | . . . Garrison Access . | . . . Total Hacks 21 | . 21 . Successful 9 | . 9 . Failed 12 | . 12 . Catastrophic 4 | . 4 . Database Lockouts . | . . . Manual 10 | . 10 . Terminals 16 | . 16 . Fabricators . | . . . Repair Stations 1 | . 1 . Recycling Units 4 | . 4 . Scanalyzers . | . . . Garrison Access . | . . . Terminal Hacks 7 | . 7 . Record 1 | . 1 . Robot Analysis 1 | . 1 . Prototype ID Bank 1 | . 1 . Emergency Access Points 1 | . 1 . Locate Traps 2 | . 2 . Disarm Traps 1 | . 1 . Fabricator Hacks . | . . . Repair Station Hacks 1 | . 1 . Refit 1 | . 1 . Recycling Unit Hacks 1 | . 1 . Retrieve Components 1 | . 1 . Scanalyzer . | . . . Garrison Access Hacks . | . . . Unauthorized Hacks . | . . . Terminals . | . . . Fabricators . | . . . Repair Stations . | . . . Recycling Units . | . . . Scanalyzers . | . . . Garrison Access . | . . . Data Cores Recovered . | . . . Used . | . . . Hacking Detections 8 | . 8 . Full Trace Events . | . . . Feedback Events . | . . . Feedback Blocked . | . . . Robot Schematics Acquired . | . . . Robots Built . | . . . Authchips . | . . . Time . | . . . Total Robot Build Rating . | . . . Part Schematics Acquired . | . . . Parts Built . | . . . Authchips . | . . . Time . | . . . Total Part Build Rating . | . . . Part Studies Acquired . | . . . Parts Repaired . | . . . Time . | . . . Parts Recycled . | . . . Recycled Matter . | . . . Retrieved Matter . | . . . Retrieved Components 4 | . 4 . Parts Scanalyzed . | . . . Part Schematics Acquired . | . . . Parts Damaged . | . . . Bothacking | -11 -10 -10 ------------ Run | Yrd Mat Sub Used RIF Installer . | . . . Robots Hacked . | . . . Non-combat . | . . . Combat . | . . . Robot Hacks Applied . | . . . Relay Couplers Released . | . . . Fabnet Peak Effective % . | . . . Robots Rewired . | . . . Allies Hacked . | . . . Hacks Repelled . | . . . Allies | -11 -10 -10 -------- Run | Yrd Mat Sub Total Allies . | . . . Largest Group . | . . . Highest-Rated Group . | . . . Highest-Rated Ally . | . . . Total Orders . | . . . Ally Attacks . | . . . Total Damage . | . . . Kills . | . . . Allies Corrupted . | . . . Allies Melted . | . . . Intel | -11 -10 -10 ------- Run | Yrd Mat Sub Active Infowar (turns) 1295 | 38 975 282 Terrain 1295 | 38 975 282 Robot Analysis Total 1 | . 1 . Derelict Logs Recovered . | . . . Drone Launches . | . . . Drone Recoveries . | . . . Exploration | -11 -10 -10 ------------- Run | Yrd Mat Sub Turns Passed 2167 | 116 1008 1043 Spaces Moved 1296 | 78 604 614 Core 26 | 24 2 . Treads . | . . . Legs 1268 | 54 600 614 Wheels . | . . . Hover 2 | . 2 . Flight . | . . . Fastest Speed 50 | 50 76 120 Average Speed 119 | 110 120 120 Slowest Speed 200 | 120 200 190 Overloaded Moves . | . . . Propulsion Burnouts . | . . . Robots Hopped . | . . . Potential Cave-ins . | . . . Cave-ins Triggered . | . . . Exploration Rate (%) 42 | 3 87 37 Regions Visited 2 Branch Regions 1 Pre-discovered Areas . | . . . Known Exits Taken . | . . . Unknown Exits Taken 2 | 1 1 . Scrap Searched . | . . . Spaces Dug . | . . . Terrain Destroyed 2 | . 2 . Melee . | . . . Projectile . | . . . AOE 2 | . 2 . Terrain Rammed . | . . . Walls Destroyed . | . . . Machines Disabled . | . . . Actions | -11 -10 -10 --------- Run | Yrd Mat Sub Total 1845 | 99 829 917 Wait 419 | . 122 297 Move 1294 | 77 603 614 Hop . | . . . Pick Up 32 | 11 20 1 Fast Attach . | . . . Attach 18 | 7 6 5 Detach 1 | . 1 . Swap 9 | . 9 . Drop 22 | . 22 . Fire 50 | 4 46 . Melee . | . . . Ram . | . . . Kick . | . . . Crush . | . . . Escape Stasis . | . . . Rewire . | . . . Trap . | . . . Miscellaneous . | . . . Route ------- -11/Scrapyard -10/Materials (discovered 4 exits: [*Mat x3] / [*Sub]) -10/Subcaves History --------- Turn | Location | Event 45 | -11/Scrapyard | Discovered new exit (range 15) 117 | -11/Scrapyard | Entered Materials 304 | -10/Materials | Build established: Mutant 489 | -10/Materials | Discovered new exit (range 16) 699 | -10/Materials | Discovered new exit (range 11) 964 | -10/Materials | Build established: Scavenger-Mutant 1036 | -10/Materials | Discovered new exit (range 15) 1114 | -10/Materials | Discovered new exit (range 9) 1125 | -10/Materials | Entered Subcaves 1364 | -10/Subcaves | Build established: Mutant 1398 | -10/Subcaves | Core integrity fell below 50% 1438 | -10/Subcaves | Lost 3 parts (2p1n) 1440 | -10/Subcaves | Core integrity fell below 20% 1698 | -10/Subcaves | Build established: Scavenger-Mutant 2168 | -10/Subcaves | Destroyed by Autobeam Turret with Autobeam Last Messages --------------- directions. Ion Engine destroyed. Triggered Piercing Trap. Spikes shoot up from the floor. Critical hit (Impale). Triggered Shrapnel Trap. An expanding cloud of shrapnel blasts out in all directions. Aluminum Leg destroyed. Critical hit (Meltdown: +290). Ion Engine destroyed. Subatomizers dissect the Sub. Optics. Subatomizers dissect the Sub. Laser. Acquired 20 matter. Sml. Laser destroyed. Acquired Sub. Power Source. Imp. Terrain Scanner destroyed. Sub. Power Source shoots sparks and powers down. Acquired 10 matter. Acquired 5 matter. Map ----- +----------------------------------------------------+ | ??????????????????????????????????????????????#??? | | ?????????????????????????????????????????????????? | | ?????????????????????????????????????????????????? | | ?????????????????????????????????????????????????? | | ????????????????????????????????????????????#????? | | ?????????????????????????????????????????????????? | | ????????????????????????????????????????????????## | | ??????????????????????????????????????????????### | | ??????????????????????????????????#????####??## | | ????????????????????????????????#""""" # #### | | ???????????????????????%t??????#""" | | ????????????????????? ?????#" " " | | ????????????????????? ?????####"##### #"" "" | | ???????????????? #??? ?????????????#### ## "" | | ???????????????? ##?? #???????????????#" ##" | | ????????????????? #? #??????????????### ### | | ?????????????????# ? ##?????????????# "" | | ?????????????????? ## [!###???????????# "" | | ??????????????????? &%& ????????? " ""## ## | | ???????????????????? =% ??????????"""""?## ## | | ????????????????????? ??????????????? ??# "## | | ?????????????????????# ##???????###????"??#""## | | ???????????????###??## #??????#""""?????##" | | ??????????????## ### [ #??????#""""????## | | ########????### !!%#???????"""##????# | | # ###??#; %@##?######" #????# | | ##??# % * &### ""####??## ## | | ##?# ## % ""#???## ## | | ####??# ###### ## | | ### #??# #### ###"" ## | | ##?## #### #??## ## ### | | ##### #???#% ## ## ### | | ### ## ## ## | | #?## % #### ### | | #### ### #??# ## #??## # #### | | #??#### #?# #?##### #???#### # # | | ##?????# #?# ????## #?????# | | ###??????# ????## #?????# # ## # | | ????????# ## ????#####?????########### | | ????????# ####### ??????????????????????## | | ????????#########??????####??????????????????????# | | ?????????????????????????????????????????????????# | | ?????????????????????????????????????????????????? | | ????????????????????????????????????#????????????? | | ?????????????????????????????????????????????????? | | ?????????????????????????????????????????????????? | | ?????????????????????????????????????????????????? | | ?????????????????????????????????????????????????? | | ?????????????????????????????????????????????????? | | ?????????????????????????????????????????????????? | +----------------------------------------------------+ Best States ------------- Heat Dissipation 25 Energy Generation 15 Energy Capacity 250 Matter Stores 300 Matter Capacity 300 Sight Range 16 Terrain Scan Range 16 Terrain Scan Density 10 Armor Coverage 80 Evasion (%) 55 Item Schematics ----------------- None Robot Schematics ------------------ None Fabricated ------------ Nothing Repaired ---------- Nothing Studied --------- None Alien Tech Used ----------------- None Achievements -------------- None Challenges ------------ None Game ------ Seed DispersionSwarmModule Manual? 0 Play Time 00:17:07 Cumulative 16.8 hours Start 2026.09.04 @ 20:30:44 End 2026.09.04 @ 20:46:59 Sessions 1 Manual Loads 0 Difficulty Rogue Special Mode None Game No. 25 Rogue 23 Adventurer 2 Explorer 0 Win Type - Total 0 Types 0/0/0/0/0/0/0/0/0/0 Lore% 15 Gallery% 18 Achievement% 17 Wizard Run 0 Options --------- Layout 1 ASCII 1 Keyboard 0 Movement Numpad Keybinds 0 Fullscreen 2 Font 24/Smallcaps Map View 50x35 Zoom Use 0% Tactical HUD 0 Map Filters NONE Filters NONE Steam 1 RUN: d66851ba-dc21-4682-a319-3e983ffac665